Expenditure Date,Department,Beneficiary,Amount (�),Summary of purpose of expenditure,Description
01/07/2021,Chelston Vehicle Engineering,SMH PRODUC,162.07,Contractor Repair,SMH PRODUCTS BRISTOL
01/07/2021,Public Relations,FACEBK 3A5,49.10,Marketing Materials,FACEBK 3A5S953GF2
01/07/2021,Crediton,AMZNMktpla,17.46,Standard Equipment,AMZNMktplace
01/07/2021,Research & Development,MCDONALDS,8.65,Catering/Refreshments,MCDONALDS
01/07/2021,USAR Team,TESCO STOR,21.00,Catering/Refreshments,TESCO STORE 2487
01/07/2021,USAR Team,CIVIL AVIA,9.00,Trng Equip Consumables,CIVIL AVIATION AUTHORITY
01/07/2021,Yeovil Group,LYRECO UK,26.94,Printing/Stationery/Photocopy,RM500 LYRECO BUDGET PAPER A3 80G WH
01/07/2021,Yeovil Group,LYRECO UK,49.75,Printing/Stationery/Photocopy,RM500 LYRECO BUDGET PAPER A4 80G WH
01/07/2021,Human Resources,ATOM PUBLI,576.00,Recruitment Advertising,ATOM PUBLISHING
01/07/2021,Assets & Systems,RESOURCE G,94.65,Licence fees,RESOURCE GURU
01/07/2021,Customer Services,TESCO STOR,3.00,Meals for Training Courses,TESCO STORE 2487
01/07/2021,Customer Services,MFG TELEGR,3.66,Meals for Training Courses,MFG TELEGRAPH HILL
02/07/2021,ICT Delivery,PREMIER FA,44.00,ICT Network Service,PREMIER FARNELL
02/07/2021,ICT Delivery,PREMIER FA,306.30,ICT Network Service,PREMIER FARNELL
02/07/2021,Barnstaple Group,DRIFTWOOD,14.85,Catering/Refreshments,DRIFTWOOD COFFEE SHOP
02/07/2021,USAR Team,DARTS FARM,14.04,Catering/Refreshments,DARTS FARM
02/07/2021,Taunton,WWW.FURNIT,184.80,Standard Equipment,WWW.FURNITUREATWORK.CO
02/07/2021,Yeovil Group,ROYAL MAIL,85.00,Postages,ROYAL MAIL ONLINE SHOP
02/07/2021,Customer Services,CROSS KEYS,4.59,Meals for Training Courses,CROSS KEYS SF CONNECT
02/07/2021,Customer Services,SOUTHERN C,3.50,Meals for Training Courses,SOUTHERN CO-OP 0373
02/07/2021,Customer Services,CO-OP GROU,4.70,Meals for Training Courses,CO-OP GROUP FOOD
03/07/2021,Barnstaple Group,LYRECO UK,31.65,Printing/Stationery/Photocopy,RM500 LYRECO PAPER A4 75G WH
03/07/2021,Barnstaple Group,LYRECO UK,1.56,Printing/Stationery/Photocopy,LYRECO CORRECT TAPE SIDELOAD 4.2MMX8.5M
03/07/2021,Barnstaple Group,LYRECO UK,7.08,Printing/Stationery/Photocopy,TIPP-EX SHAKE N'SQUEEZE CORRECT PEN 8ML
03/07/2021,Barnstaple Group,LYRECO UK,1.08,Printing/Stationery/Photocopy,LYRECO B/POINT PEN MED POINT BLK
03/07/2021,Barnstaple Group,LYRECO UK,13.68,Printing/Stationery/Photocopy,LYRECO PREMIUM GEL PEN RT 0.7MM BLACK
03/07/2021,Barnstaple Group,LYRECO UK,4.62,Printing/Stationery/Photocopy,CLIPBOARD HARDBOARD FOOLSCAP
03/07/2021,USAR Team,STARFISH B,86.40,Catering/Refreshments,STARFISH BAR
03/07/2021,USAR Team,ONE STOP 5,5.50,Catering/Refreshments,ONE STOP 5101
03/07/2021,Torbay Group Support,DOMINOS PI,175.85,Catering/Refreshments,DOMINOS PIZZA
03/07/2021,Gartan Pilot,LYRECO UK,72.66,Printing/Stationery/Photocopy,FELLOWES COSMIC 2 LAMINATING MACHINE A3
03/07/2021,Academy Management,ZOOM.US 88,16.79,Licence fees,Standard Pro Monthly
03/07/2021,West & North,Amazon Pri,-9.32,Standard Equipment,Amazon Prime
03/07/2021,West & North,Amazon Pri,65.83,Standard Equipment,Amazon Prime*205F42TJ4
03/07/2021,West & North,Amazon Pri,6.66,Standard Equipment,Amazon Prime*209BD9TH4
04/07/2021,USAR Team,CO OP GROU,22.80,Catering/Refreshments,CO OP GROUP FOOD
04/07/2021,West & North,AMZNMktpla,29.08,Standard Equipment,AMZNMktplace
05/07/2021,Public Relations,dotmailer,240.00,Publications/Subscriptions,dotmailer
05/07/2021,Barnstaple Group,BOOKER LIM,135.37,Wholetime Fireground Feeding,BOOKER LIMITED BARNSTAPLE
05/07/2021,USAR Team,MAKRO SELF,121.32,Standard Equipment,MAKRO SELF SERVICE EXETER
05/07/2021,Customer Services,CO OP GROU,3.50,Meals for Training Courses,CO OP GROUP FOOD
05/07/2021,Customer Services,SHELL A38,4.72,Meals for Training Courses,SHELL A38 WEST BUCKLAN
06/07/2021,Chelston Vehicle Engineering,BEAVER GAR,12.96,Direct Replacmnt Parts-Defects,BEAVER GARAGES
06/07/2021,Hydrants Maintenance,SAFETY GLO,80.94,First Aid,SAFETY GLOVES
06/07/2021,USAR Team,LYRECO UK,6.00,Printing/Stationery/Photocopy,LYRECO PERMANENT MARKER B/TIP BLACK
06/07/2021,USAR Team,LYRECO UK,2.36,Printing/Stationery/Photocopy,PK4 LYRECO PERM MARKER B/TIP ASSTD COL
06/07/2021,USAR Team,LYRECO UK,13.90,Printing/Stationery/Photocopy,PK5 LYRECO CLIP FOLDER PP A4 3MM BLK
06/07/2021,USAR Team,LYRECO UK,0.82,Printing/Stationery/Photocopy,BX1000 LYRECO STANDARD 23/17 STAPLES
06/07/2021,USAR Team,LYRECO UK,1.80,Printing/Stationery/Photocopy,LYRECO BALLPOINT PEN MEDIUM BLUE
06/07/2021,USAR Team,LYRECO UK,1.80,Printing/Stationery/Photocopy,LYRECO B/POINT PEN MED POINT BLK
06/07/2021,USAR Team,LYRECO UK,2.80,Printing/Stationery/Photocopy,PK4 LYRECO W/BOARD MARKER C/TIP ASSTD
06/07/2021,USAR Team,LYRECO UK,15.00,Printing/Stationery/Photocopy,LYRECO WHITEBOARD MARKER B/TIP BLACK
06/07/2021,USAR Dog,OSCARS HON,55.77,USAR Dog Expenses,OSCARS HONITON R/T CUR
06/07/2021,People & Development,IKEA LTD 5,20.00,Standard Equipment,IKEA LTD 548 EXETER EXPRE
06/07/2021,Human Resources,IGPP LTD,283.20,Seminars/Conferences,IGPP LTD
06/07/2021,Academy Management,AIRDAT LTD,70.80,Publications/Subscriptions,AIRDAT LTD
06/07/2021,Academy Management,AIRDAT LTD,-70.80,Publications/Subscriptions,AIRDAT LTD
06/07/2021,Customer Services,CENTRAL CO,3.55,Meals for Training Courses,CENTRAL CONVENIENT STORES
06/07/2021,Customer Services,SOUTHERN C,4.30,Meals for Training Courses,SOUTHERN CO-OP 0373
06/07/2021,Customer Services,CROSS KEYS,4.92,Meals for Training Courses,CROSS KEYS SF CONNECT
06/07/2021,Customer Services,AMZNMktpla,7.88,Printing/Stationery/Photocopy,AMZNMktplace
06/07/2021,HazMat - Capabilities,GATE OF IN,48.40,Catering/Refreshments,GATE OF INDIA
07/07/2021,MTA Action Plan,AMZNMktpla,102.86,Operational Equipment,AMZNMktplace
07/07/2021,MTA Action Plan,AMZNMktpla,102.85,Operational Equipment,AMZNMktplace
07/07/2021,MTA Action Plan,AMZNMktpla,38.57,Operational Equipment,AMZNMktplace
07/07/2021,Operational Assets Management,THRIFTY CA,23.23,Fuel (Petrol Etc),FUEL CHARGE FOR HIRE VEHICLE
07/07/2021,Operational Assets Management,THRIFTY CA,303.16,Air Fares,17 - 29 May
07/07/2021,Light Vehicle Management,THRIFTY CA,56.43,Hired Transport, 08-09 June
07/07/2021,Crownhill Vehicle Engineering,AMZNMktpla,3.82,Print Consumables,AMZNMktplace
07/07/2021,Public Relations,SHUTTERSTO,22.80,Printing/Stationery/Photocopy,SHUTTERSTOCK IRELAND LIMI
07/07/2021,Ilfracombe,THRIFTY CA,18.81,Hired Transport,Hire Vehicle
07/07/2021,Ilfracombe,THRIFTY CA,18.81,Hired Transport,Hire Vehicle
07/07/2021,Combe Martin,THRIFTY CA,56.43,Hired Transport,Hire Vehicle
07/07/2021,Combe Martin,THRIFTY CA,37.62,Hired Transport,Hire Vehicle
07/07/2021,Combe Martin,THRIFTY CA,18.81,Hired Transport,Hire Vehicle
07/07/2021,Lynton,THRIFTY CA,242.52,Hired Transport,Car hire consolidated to booking sheet
07/07/2021,Woolacombe,THRIFTY CA,18.81,Hired Transport,Hire Vehicle
07/07/2021,Woolacombe,THRIFTY CA,69.98,Hired Transport,Hire Vehicle
07/07/2021,Appledore,THRIFTY CA,18.81,Hired Transport,Hire Vehicle
07/07/2021,Appledore,THRIFTY CA,37.62,Hired Transport,Hire Vehicle
07/07/2021,Appledore,THRIFTY CA,18.81,Hired Transport,Hire Vehicle
07/07/2021,Chulmleigh,THRIFTY CA,18.81,Hired Transport,Hire Vehicle
07/07/2021,Chulmleigh,THRIFTY CA,18.81,Hired Transport,Hire Vehicle
07/07/2021,Chulmleigh,THRIFTY CA,18.81,Hired Transport,Hire Vehicle
07/07/2021,Chulmleigh,THRIFTY CA,37.62,Hired Transport,Hire Vehicle
07/07/2021,Chulmleigh,THRIFTY CA,32.36,Hired Transport,Hire Vehicle
07/07/2021,Chulmleigh,THRIFTY CA,37.62,Hired Transport,Hire Vehicle
07/07/2021,Chulmleigh,THRIFTY CA,94.05,Hired Transport,Hire Vehicle
07/07/2021,Hartland,THRIFTY CA,18.81,Hired Transport,Hire Vehicle
07/07/2021,Hartland,THRIFTY CA,94.05,Hired Transport,Hire Vehicle
07/07/2021,Hartland,THRIFTY CA,18.81,Hired Transport,Hire Vehicle
07/07/2021,Hatherleigh,THRIFTY CA,18.81,Hired Transport,Hire Vehicle
07/07/2021,Hatherleigh,THRIFTY CA,18.81,Hired Transport,Hire Vehicle
07/07/2021,Exeter Group,THRIFTY CA,132.66,Hired Transport,Hire Vehicle
07/07/2021,North Tawton,THRIFTY CA,56.43,Hired Transport,Hire Vehicle
07/07/2021,North Tawton,THRIFTY CA,64.72,Hired Transport,Hire Vehicle
07/07/2021,Okehampton,THRIFTY CA,56.43,Hired Transport,Hire Vehicle
07/07/2021,Danes Castle,THRIFTY CA,56.43,Hired Transport,Hire Vehicle
07/07/2021,Danes Castle,THRIFTY CA,94.05,Hired Transport,Hire Vehicle
07/07/2021,Bampton,THRIFTY CA,223.87,Hired Transport,Car hire consolidated to booking sheet
07/07/2021,Cullompton,THRIFTY CA,71.43,Hired Transport,Hire Vehicle
07/07/2021,Axminster,THRIFTY CA,373.11,Hired Transport,Car hire consolidated to booking sheet
07/07/2021,USAR Dog,AMZNMKTPLA,43.30,USAR Dog Expenses,AMZNMKTPLACE AMAZON.CO.UK
07/07/2021,Protection - Delivery,THRIFTY CA,56.43,Hired Transport,Hire Vehicle
07/07/2021,Plympton,THRIFTY CA,75.24,Hired Transport,Hire Vehicle
07/07/2021,Greenbank,THRIFTY CA,56.43,Hired Transport,Hire Vehicle
07/07/2021,Bere Alston,THRIFTY CA,37.62,Hired Transport,Hire Vehicle
07/07/2021,Ivybridge,THRIFTY CA,107.60,Hired Transport,Hire Vehicle
07/07/2021,Modbury,THRIFTY CA,93.60,Hired Transport,Hire Vehicle
07/07/2021,Princetown,THRIFTY CA,18.81,Hired Transport,Hire Vehicle
07/07/2021,Yelverton,THRIFTY CA,18.81,Hired Transport,Hire Vehicle
07/07/2021,South Devon,THRIFTY CA,419.49,Hired Transport,Hire Vehicle
07/07/2021,Taunton Group,WWW.ELITEI,203.71,Standard Equipment,WWW.ELITEINDUSTRIAL.CO
07/07/2021,Minehead,THRIFTY CA,55.97,Hired Transport,Car hire consolidated to booking sheet
07/07/2021,Porlock,THRIFTY CA,88.62,Hired Transport,Car hire consolidated to booking sheet
07/07/2021,Wellington,THRIFTY CA,240.30,Hired Transport,Car hire consolidated to booking sheet
07/07/2021,Bridgwater,THRIFTY CA,55.97,Hired Transport,Car hire consolidated to booking sheet
07/07/2021,Nether Stowey,THRIFTY CA,167.90,Hired Transport,Car hire consolidated to booking sheet
07/07/2021,Williton,THRIFTY CA,111.93,Hired Transport,Car hire consolidated to booking sheet
07/07/2021,Yeovil,THRIFTY CA,55.97,Hired Transport,Car hire consolidated to booking sheet
07/07/2021,Crewkerne,THRIFTY CA,55.97,Hired Transport,Car hire consolidated to booking sheet
07/07/2021,Glastonbury Fire station,THRIFTY CA,167.90,Hired Transport,Car hire consolidated to booking sheet
07/07/2021,Frome,THRIFTY CA,430.02,Hired Transport,Car hire consolidated to booking sheet
07/07/2021,Wells,THRIFTY CA,67.42,Hired Transport,Car hire consolidated to booking sheet
07/07/2021,Human Resources,THRIFTY CA,413.33,Hired Transport,Hire Vehicle
07/07/2021,Academy Management,THRIFTY CA,361.17,Hired Transport,Hire Vehicle
07/07/2021,Academy Management,Amazon.co.,28.25,Standard Equipment,Amazon.co.uk*WV4MT4ZQ5
07/07/2021,Academy Management,AIRDAT LTD,70.80,Publications/Subscriptions,AIRDAT LTD
07/07/2021,Assets & Systems,TYPEFORM S,25.00,Licence fees,TYPEFORM S.L
07/07/2021,Customer Services,TESCO STOR,3.00,Meals for Training Courses,TESCO STORE 2487
07/07/2021,Customer Services,W M MORRIS,3.28,Meals for Training Courses,W M MORRISON PETROL
07/07/2021,Customer Services,SHELL A38,6.28,Meals for Training Courses,SHELL A38 WEST BUCKLAN
07/07/2021,Customer Services,AMZNMktpla,16.61,Printing/Stationery/Photocopy,AMZNMktplace
07/07/2021,Covid-19,THRIFTY CA,381.86,Hired Transport,COVID CHARGES HIRE VEHICLES MAY 2021
07/07/2021,Covid-19,THRIFTY CA,177.98,Hired Transport,Hire Vehicle
07/07/2021,Covid-19,THRIFTY CA,398.04,Hired Transport,Hire Vehicle
07/07/2021,Covid-19,THRIFTY CA,510.97,Hired Transport,BARNSTAPLE GRP BIDEFORD - COVID  COSTS
08/07/2021,Estates,WWW.HOSERE,396.42,Unforseen Maintnce Mats Techn,WWW.HOSEREELSDIRECT.CO
08/07/2021,Crownhill Vehicle Engineering,PREMIER PO,50.88,Direct Replacmnt Parts-Defects,PREMIER POWER PRODUCTS LT
08/07/2021,Hydrants Maintenance,SCREWFIX D,105.83,Hydrant Misc Costs,SCREWFIX DIRECT
08/07/2021,Public Relations,STK*Shutte,22.80,Printing/Stationery/Photocopy,STK*Shutterstock
08/07/2021,Barnstaple Group,AMZNMktpla,27.22,ICT Desktop Service,Dell Wireless Keyboard & Mouse
08/07/2021,Barnstaple Group,AMZNMktpla,17.47,ICT Desktop Service,Laptop Riser/Stand
08/07/2021,Exeter Group,POST OFFIC,196.50,Postages,POST OFFICE COUNTER
08/07/2021,South Devon,AMZNMktpla,7.66,Standard Equipment,AMZNMktplace
08/07/2021,South Devon,SOUTHERN C,7.00,Standard Equipment,SOUTHERN CO-OP 0373
08/07/2021,Academy Management,LYRECO UK,14.40,Provisions Purchase,PK150 MEADOW CHURN SEMI MILK JIGGERS
08/07/2021,Academy Management,LYRECO UK,105.50,Provisions Purchase,BX200 NESCAFE ORIGINAL SACHET
08/07/2021,Academy Management,LYRECO UK,40.60,Provisions Purchase,PK200 PG TIPS ENVELOPED TAGGED TEA BAGS
08/07/2021,Customer Services,GRUBS UP,4.17,Meals for Training Courses,GRUBS UP
08/07/2021,Customer Services,WM MORRISO,3.48,Meals for Training Courses,WM MORRISONS PETROL
08/07/2021,Customer Services,CENTRAL CO,3.99,Meals for Training Courses,CENTRAL CONVENIENT STORES
08/07/2021,West & North,APPLIANCED,-479.98,Standard Equipment,APPLIANCEDIRECT CO
08/07/2021,West & North,APPLIANCED,-20.14,Standard Equipment,APPLIANCEDIRECT CO
09/07/2021,ICT Delivery,AMZ*musicm,199.99,ICT Mobile Telephony Service,iPhone 8 (Refurbished)
09/07/2021,Barnstaple Group,BOOKER LIM,90.11,Wholetime Fireground Feeding,BOOKER LIMITED BARNSTAPLE
09/07/2021,USAR Team,THE OLD PO,8.80,Catering/Refreshments,THE OLD POLICE STATION
09/07/2021,USAR Team,MCDONALDS,11.58,Catering/Refreshments,MCDONALDS 1588
09/07/2021,USAR Team,MCDONALDS,11.58,Catering/Refreshments,MCDONALDS 1588
09/07/2021,USAR Team,MCDONALDS,-11.58,Catering/Refreshments,MCDONALDS 1588
09/07/2021,USAR Team,CIVIL AVIA,9.00,Trng Equip Consumables,CIVIL AVIATION AUTHORITY
09/07/2021,South Devon,Amazon.co.,132.50,Standard Equipment,Amazon.co.uk*797A335Q5
09/07/2021,South Devon,PROTEC DIR,279.50,Operational Equipment,3M DT-1135E PF10 P3 FILTER FOR FULL FACE
09/07/2021,Customer Services,W M MORRIS,3.29,Meals for Training Courses,W M MORRISON PETROL
09/07/2021,Customer Services,TESCO PFS,4.26,Meals for Training Courses,TESCO PFS 4169
09/07/2021,Customer Services,LYRECO UK,96.96,Printing/Stationery/Photocopy,BIC 4-COLORS B/POINT PEN MEDIUM 1MM
09/07/2021,Customer Services,LYRECO UK,4.00,Printing/Stationery/Photocopy,STANDARD RULER 12 /30CM CLR
09/07/2021,Customer Services,LYRECO UK,35.00,Printing/Stationery/Photocopy,LYRECO FEINT RULED & MARGIN RFL PAD A4
09/07/2021,West & North,AMZNMktpla,110.75,Standard Equipment,AMZNMktplace
09/07/2021,West & North,AMZNMktpla,29.99,Standard Equipment,AMZNMktplace
09/07/2021,West & North,AMZNMKTPLA,83.28,Standard Equipment,AMZNMKTPLACE AMAZON.CO.UK
10/07/2021,ICT Delivery,POST OFFIC,26.75,Postages,POST OFFICE COUNTER
10/07/2021,MRP Equipment,RS COMPONE,40.79,Operational Equipment,DEB skin safety cradle
10/07/2021,Public Relations,PAPERTURN,9.00,ICT Application Services (Oth),PAPERTURN   *
10/07/2021,Fire Control,LYRECO UK,5.16,Printing/Stationery/Photocopy,PERSO 4D-RING BINDER 40MM A4+ WH
10/07/2021,Fire Control,LYRECO UK,5.20,Printing/Stationery/Photocopy,LYRECO PAD GLUED 2H-PUNCH A5 RUL 60G 80S
10/07/2021,Fire Control,LYRECO UK,3.55,Printing/Stationery/Photocopy,BX100 LYRECO SCREEN WIPES
10/07/2021,Fire Control,LYRECO UK,1.94,Printing/Stationery/Photocopy,ELBA SUBJECT DIVIDER 20-PART A4
10/07/2021,Fire Control,LYRECO UK,1.54,Printing/Stationery/Photocopy,PK5 POST-IT 670-5 INDEX PAP 15X50MM NEON
10/07/2021,USAR Team,MFG TELEGR,26.18,Wholetime Fireground Feeding,MFG TELEGRAPH HILL
10/07/2021,USAR Dog,VONWOLFK9S,190.00,Standard Equipment,VONWOLFK9SP
10/07/2021,Customer Services,LYRECO UK,10.30,Printing/Stationery/Photocopy,CRYSTAL 55698E 24-PART EXPANDING FILE PP
10/07/2021,West & North,AMZNMktpla,22.34,Standard Equipment,AMZNMktplace
10/07/2021,West & North,AMZNMKTPLA,54.96,Standard Equipment,AMZNMKTPLACE AMAZON.CO.UK
11/07/2021,West & North,AMZNMKTPLA,28.98,Standard Equipment,AMZNMKTPLACE AMAZON.CO.UK
12/07/2021,Stock,PREMIER FA,12.71,Ops Equipment Purchases,PREMIER FARNELL
12/07/2021,ICT Delivery,MANX TELEC,16.66,ICT Mobile Telephony Service,MANX TELECOM July
12/07/2021,Estates,Barriers D,19.25,Standard Equipment,Barriers Direct
12/07/2021,Procurement,Exeter Cit,4.00,Non-Uniformed Training,Exeter City Council
12/07/2021,Bridgwater,PEGASUS IN,78.28,Unforseen Maintnce Mats Techn,PEGASUS INDUSTRIAL
12/07/2021,Academy Management,AIRDAT LTD,70.80,Publications/Subscriptions,AIRDAT LTD
12/07/2021,Customer Services,SOUTHERN C,3.60,Meals for Training Courses,SOUTHERN CO-OP 0373
12/07/2021,Customer Services,CO-OP GROU,4.60,Meals for Training Courses,CO-OP GROUP FOOD
12/07/2021,Customer Services,SHELL A38,3.73,Meals for Training Courses,SHELL A38 WEST BUCKLAN
13/07/2021,MTA Action Plan,WWW.POOLEY,293.98,Operational Equipment,WWW.POOLEYS.COM
13/07/2021,ICT Delivery,ELEARNING,870.51,ICT Training Systems Supp Serv,Lectora Software
13/07/2021,ICT Delivery,LYRECO UK,99.50,Printing/Stationery/Photocopy,RM500 LYRECO BUDGET PAPER A4 80G WH
13/07/2021,Democratic Services,LYRECO UK,7.41,Printing/Stationery/Photocopy,EUROPA 3108Z 10 PART DIV A4+ ASSTD COL
13/07/2021,Organisational Development,SANDWI ON,12.55,Catering/Refreshments,SANDWI ON THE GO LTD
13/07/2021,Braunton,ARGOS LTD,12.49,Standard Equipment,ARGOS LTD-Voltage adapter.
13/07/2021,USAR Team,RIVER EXE,14.50,Catering/Refreshments,RIVER EXE CAFE LTD
13/07/2021,USAR Team,SEAWOOD CH,11.95,Operational Equipment,SEAWOOD CHANDLERY
13/07/2021,West Devon,LYRECO UK,5.76,Printing/Stationery/Photocopy,LYRECO HALF-STRIP STAPLER FULL METAL
13/07/2021,West Devon,LYRECO UK,3.42,Printing/Stationery/Photocopy,BX4 LYRECO BUDGET HIGHLIGHTERS ASSTD COL
13/07/2021,West Devon,LYRECO UK,5.70,Printing/Stationery/Photocopy,LYRECO THINGS TO DO PAD
13/07/2021,West Devon,LYRECO UK,6.36,Printing/Stationery/Photocopy,PK4 LUMOCOLOR 316 N/PERM OHP PEN F ASSTD
13/07/2021,West Devon,LYRECO UK,10.47,Printing/Stationery/Photocopy,PK4 LUMOCOLOR 318 PERM OHP PEN F ASSTD
13/07/2021,Customer Services,TESCO PFS,3.00,Meals for Training Courses,TESCO PFS 3708
13/07/2021,Customer Services,TEXACO YEA,6.03,Meals for Training Courses,TEXACO YEALM MOTOR
13/07/2021,West & North,WWW.CSI-PR,490.36,Standard Equipment,WWW.CSI-PRODUCTS.CO.UK
13/07/2021,Prevention Delivery,Amazon Pri,6.66,Standard Equipment,Amazon Prime*5L1SN1XK5
14/07/2021,MTA Action Plan,AMZNMktpla,48.17,Operational Equipment,AMZNMktplace
14/07/2021,MTA Action Plan,AMZNMktpla,129.92,Operational Equipment,AMZNMktplace
14/07/2021,ICT Delivery,DRI*Cisco,82.50,ICT Infrastructure Service,DRI*Cisco Webex
14/07/2021,Light Vehicle Management,LYRECO UK,2.34,Standard Equipment,PK10 ENERGIZER INDUSTRIAL ALK BATT AAA
14/07/2021,Light Vehicle Management,LYRECO UK,36.67,Standard Equipment,KENSINGTON PREMIUM COOL-GEL SEAT CUSHION
14/07/2021,Light Vehicle Management,LYRECO UK,2.23,Standard Equipment,PK10 ENERGIZER INDUSTRIAL ALK BAT AA LR6
14/07/2021,Light Vehicle Management,LYRECO UK,2.50,Printing/Stationery/Photocopy,LYRECO DOC WLLT F/CAP/FOLIO 250G YLLW
14/07/2021,Light Vehicle Management,LYRECO UK,2.50,Printing/Stationery/Photocopy,LYRECO DOC WLLT F/CAP/FOLIO 250G RED
14/07/2021,Light Vehicle Management,LYRECO UK,2.50,Printing/Stationery/Photocopy,LYRECO DOC WLLT F/CAP/FOLIO 250G PINK
14/07/2021,Light Vehicle Management,LYRECO UK,2.50,Printing/Stationery/Photocopy,LYRECO DOC WLLT F/CAP/FOLIO 250G ORGE
14/07/2021,Light Vehicle Management,LYRECO UK,2.50,Printing/Stationery/Photocopy,LYRECO DOC WLLT F/CAP/FOLIO 250G GR
14/07/2021,Light Vehicle Management,LYRECO UK,2.50,Printing/Stationery/Photocopy,LYRECO DOC WLLT F/CAP/FOLIO 250G BLU
14/07/2021,Light Vehicle Management,LYRECO UK,11.37,Printing/Stationery/Photocopy,BX25 ELBA SPRING POCK FILE DARK RED
14/07/2021,Light Vehicle Management,LYRECO UK,4.08,Printing/Stationery/Photocopy,LYRECO SHORTHAND NOTEBOOK 200S 56G
14/07/2021,Light Vehicle Management,LYRECO UK,1.31,Printing/Stationery/Photocopy,PK RUBBER BANDS NO.69 1LB 6 LONG
14/07/2021,Light Vehicle Management,LYRECO UK,0.36,Printing/Stationery/Photocopy,BX5000 LYRECO 26/6 STAPLES
14/07/2021,USAR Team,B&M 008 -,42.91,Standard Equipment,B&M 008 - EXETER
14/07/2021,Protection - Delivery,AMZNMktpla,21.66,ICT Desktop Service,Anker Ergonomic Mouse
14/07/2021,Customer Services,CENTRAL CO,3.82,Meals for Training Courses,CENTRAL CONVENIENT STORES
14/07/2021,Customer Services,TESCO PFS,3.00,Meals for Training Courses,TESCO PFS 2620
14/07/2021,West & North,FAST KEY S,8.44,Standard Equipment,FAST KEY SERVICES LIMI
14/07/2021,Prevention Delivery,AMZNMktpla,5.33,Standard Equipment,AMZNMktplace
14/07/2021,Prevention Delivery,AMZNMktpla,20.72,Standard Equipment,AMZNMktplace
14/07/2021,Prevention Delivery,AMZNMKTPLA,10.82,Standard Equipment,AMZNMKTPLACE AMAZON.CO.UK
15/07/2021,Stock,PREMIER FA,12.71,Ops Equipment Purchases,PREMIER FARNELL
15/07/2021,ICT Delivery,LYRECO UK,9.60,Printing/Stationery/Photocopy,DURABLE 8152-58 BADGE HOLDER CHARCOAL
15/07/2021,ICT Delivery,LYRECO UK,7.10,Printing/Stationery/Photocopy,PK100 LYRECO BUBBLE ENV 150X210MM 70G WH
15/07/2021,Estates,SQ *ADVANC,215.06,Non-Uniformed Training,SQ *ADVANCED MEDIA ENGINE
15/07/2021,Chelston Vehicle Engineering,B & Q 1312,3.28,Direct Replacmnt Parts-Defects,BLOOMA DOOR TOWER BOLT BLACK 81MM
15/07/2021,Chelston Vehicle Engineering,ARC COMPON,52.76,Direct Replacmnt Parts-Defects,ARC COMPONENTS LTD
15/07/2021,Crownhill Vehicle Engineering,AMZNMktpla,9.99,Operational Equipment,AMZNMktplace
15/07/2021,Crownhill Vehicle Engineering,AMZNMktpla,4.16,Carriage Costs,Amazon - carriage
15/07/2021,Procurement,Exeter Cit,3.50,Non-Uniformed Training,Exeter City Council
15/07/2021,Exeter Group,XMA LTD,13.87,Print Consumables,"Canon 2972B001 (CL-511) Printhead color,"
15/07/2021,USAR Team,SUMUP  *SW,88.50,Catering/Refreshments,SUMUP  *SWEETS TEA ROOM
15/07/2021,USAR Team,MCDONALDS,38.92,Catering/Refreshments,MCDONALDS
15/07/2021,Customer Services,SHELL A38,4.75,Meals for Training Courses,SHELL A38 WEST BUCKLAN
15/07/2021,Customer Services,TESCO PFS,3.00,Meals for Training Courses,TESCO PFS 2620
15/07/2021,Customer Services,CENTRAL CO,5.58,Meals for Training Courses,CENTRAL CONVENIENT STORES
15/07/2021,Prevention Delivery,SCREWFIX D,27.48,Standard Equipment,Self-Tappers 10ga x 1 Pk100
16/07/2021,USAR Team,TESCO STOR,54.00,Catering/Refreshments,TESCO STORE 2487
16/07/2021,Customer Services,DOMINO S P,39.98,Meals for Training Courses,DOMINO S PIZZA
16/07/2021,Customer Services,BALASAI LT,5.00,Meals for Training Courses,BALASAI LTD
16/07/2021,Customer Services,AMZNMktpla,61.89,Meals for Training Courses,STC Provisions insulated cups
16/07/2021,Customer Services,AMZNMktpla,7.90,Meals for Training Courses,STC provisions drinking cups
16/07/2021,Prevention Delivery,AMZNMktpla,7.79,Standard Equipment,AMZNMktplace
17/07/2021,Human Resources,LYRECO UK,3.78,Printing/Stationery/Photocopy,PK250 LYRECO ENV C4 80G S/S MANILLA
17/07/2021,Human Resources,LYRECO UK,5.97,Printing/Stationery/Photocopy,PK250 LYRECO WDW ENV C4 100G S/S WH
17/07/2021,Human Resources,LYRECO UK,4.08,Printing/Stationery/Photocopy,LYRECO SHORTHAND NOTEBOOK 200S 56G
17/07/2021,Human Resources,LYRECO UK,17.00,Printing/Stationery/Photocopy,LYR BUDGET 10P C/BOARD DIV A4 160G PASTL
17/07/2021,Human Resources,LYRECO UK,11.84,Printing/Stationery/Photocopy,VERBATIM PINSTRIPE USB2.0 DRIVE 64GB GRN
17/07/2021,Human Resources,LYRECO UK,8.82,Printing/Stationery/Photocopy,VERBATIM PINSTRIPE USB2.0 DRIVE 32GB BLU
17/07/2021,Human Resources,LYRECO UK,9.50,Printing/Stationery/Photocopy,LYRECO THINGS TO DO PAD
17/07/2021,Human Resources,LYRECO UK,16.75,Printing/Stationery/Photocopy,LYRECO NOTEBOOK SPIRAL A4+ RULED 70G 80S
17/07/2021,Customer Services,LYRECO UK,9.43,Printing/Stationery/Photocopy,DYMO 45010 D1 TAPE 12MMX7M  BLK/CLEAR
17/07/2021,Customer Services,LYRECO UK,7.15,Printing/Stationery/Photocopy,DYMO 45018 D1 TAPE 12MMX7M BLK/YLLW
17/07/2021,Customer Services,LYRECO UK,7.56,Printing/Stationery/Photocopy,DYMO 45013 D1 TAPE 12MMX7M BLK/WH
17/07/2021,Customer Services,LYRECO UK,7.56,Printing/Stationery/Photocopy,DYMO 45013 D1 TAPE 12MMX7M BLK/WH
17/07/2021,Customer Services,LYRECO UK,8.68,Printing/Stationery/Photocopy,RM 250 DCP 1807C PAPER A4 200G
17/07/2021,West & North,Amazon Pri,-84.79,Standard Equipment,Amazon Prime
18/07/2021,ICT Delivery,FASTHOSTS,6.28,ICT Infrastructure Service,FASTHOSTS INTERNET
18/07/2021,Public Relations,ADOBE PROD,8.42,ICT Application Services (Oth),ADOBE PRODUCTS
19/07/2021,Chelston Vehicle Engineering,Vanscape,275.00,Vehicle Consumables,Vanscape
19/07/2021,USAR Team,TESCO STOR,8.67,Catering/Refreshments,TESCO STORES 6645
19/07/2021,Assets & Systems,RESOURCE G,"3,088.87",ICT Application Services (Oth),RESOURCE GURU
19/07/2021,Customer Services,SOUTHERN C,3.50,Meals for Training Courses,SOUTHERN CO-OP 0373
19/07/2021,Customer Services,SAINSBURYS,4.35,Meals for Training Courses,SAINSBURYS PETROL
19/07/2021,Prevention Delivery,AMZNMktpla,84.00,Standard Equipment,AMZNMktplace
20/07/2021,ICT Delivery,MSFT * E01,274.62,ICT Infrastructure Service,MSFT * E0100F2RQ4
20/07/2021,South Molton,BOOKER LIM,155.13,Wholetime Fireground Feeding,BOOKER LIMITED EXETER
20/07/2021,Middlemoor Fire Station,INDUSTRIAL,63.83,Unforseen Maintnce Mats Techn,INDUSTRIAL EXTENSION LEAD
20/07/2021,USAR Team,RIVER EXE,17.90,Catering/Refreshments,RIVER EXE CAFE LTD
20/07/2021,USAR Team,TESCO STOR,25.00,Catering/Refreshments,TESCO STORES 5438
20/07/2021,USAR Team,MFG HAZELG,43.06,Catering/Refreshments,MFG HAZELGROVE SERVICES
20/07/2021,Human Resources,WWW.CRANLE,375.00,Fitness Equipment Maintenance,WWW.CRANLEA.CO.UK
20/07/2021,Driver Training School,RSS WHIDDO,7.40,Catering/Refreshments,RSS WHIDDON DOWN
20/07/2021,Academy Management,AIRDAT LTD,70.80,Publications/Subscriptions,AIRDAT LTD
20/07/2021,Customer Services,JURASSIC C,5.60,Meals for Training Courses,JURASSIC COAST COFFEE
20/07/2021,Customer Services,SOUTHERN C,3.50,Meals for Training Courses,SOUTHERN CO-OP 0373
20/07/2021,Customer Services,GRUBS UP,3.73,Meals for Training Courses,GRUBS UP
20/07/2021,Prevention Delivery,LYRECO UK,4.70,Printing/Stationery/Photocopy,LYRECO HARD BACK TWIN WIRE NOTEBOOK A4
20/07/2021,Prevention Delivery,LYRECO UK,4.75,Printing/Stationery/Photocopy,LYRECO THINGS TO DO PAD
20/07/2021,Prevention Delivery,LYRECO UK,4.21,Printing/Stationery/Photocopy,BX100 LYRECO LAM POUCH 2X75MI A4 GLOSS
20/07/2021,Prevention Delivery,LYRECO UK,7.65,Printing/Stationery/Photocopy,BX100 LYRECO LAM POUCH 2X75MI A3 GLOSS
20/07/2021,Prevention Delivery,LYRECO UK,3.42,Printing/Stationery/Photocopy,BX4 LYRECO BUDGET HIGHLIGHTERS ASSTD COL
20/07/2021,Prevention Delivery,LYRECO UK,1.50,Printing/Stationery/Photocopy,MICRON B/POINT PEN MED BLK
20/07/2021,Prevention Delivery,LYRECO UK,1.50,Printing/Stationery/Photocopy,FOCUS BALL PEN MEDIUM BLUE
20/07/2021,Prevention Delivery,LYRECO UK,7.33,Printing/Stationery/Photocopy,PK1000 LYRECO WDW ENV DL 80G S/S WH
20/07/2021,Prevention Delivery,LYRECO UK,5.59,Printing/Stationery/Photocopy,PK500 BONG ENV C5 90G S/S WH
21/07/2021,ICT Delivery,AMZNMktpla,148.60,ICT Desktop Service,AMZNMktplace
21/07/2021,ICT Delivery,COMMS EXPR,327.22,ICT Datacentre Service,COMMS EXPRESS LTD
21/07/2021,ICT Delivery,BANDICAM C,46.25,ICT Mobile Telephony Service,BANDICAM COMPANY LLC
21/07/2021,Chelston Vehicle Engineering,YELLOW SHI,46.80,Garage Equipment,YELLOW SHIELD LTD
21/07/2021,Public Relations,ADOBE PR C,16.64,ICT Application Services (Oth),ADOBE PR CREATIVE CLD
21/07/2021,Barnstaple,PAT WILLIA,6.88,Standard Equipment,PAT WILLIAMS LTD
21/07/2021,Exeter Group,INJETS & T,36.00,Print Consumables,INJETS & TONERS
21/07/2021,USAR Team,TESCO STOR,61.42,Catering/Refreshments,TESCO STORE 2487
21/07/2021,Taunton Group,LYRECO UK,13.58,Standard Equipment,DESK FAN 3-SPEED 12  UK PLUG
21/07/2021,Taunton Group,LYRECO UK,25.32,Standard Equipment,LACQUER W/BOARD 60X90CM
21/07/2021,Taunton Group,LYRECO UK,26.25,Standard Equipment,LACQUER W/BOARD 45X60CM
21/07/2021,Taunton Group,LYRECO UK,19.71,Standard Equipment,LACQUER W/BOARD 90X120CM
21/07/2021,Taunton Group,LYRECO UK,29.85,Printing/Stationery/Photocopy,RM500 LYRECO BUDGET PAPER A4 80G WH
21/07/2021,Bridgwater,EXMOUTH PO,9.90,Unforseen Maintnce Mats Techn,EXMOUTH POWER TOOLS
21/07/2021,Yeovil,MORSE WELD,71.94,Standard Equipment,MORSE WELDING SUPPLIES
21/07/2021,Academy Management,TVLICENSIN,159.00,Licence fees,TVLICENSING.CO.UK
21/07/2021,Academy Management,AIRDAT LTD,-70.80,Publications/Subscriptions,AIRDAT LTD
21/07/2021,Assets & Systems,Amazon.co.,499.98,Audio Visual Equipment,Amazon.co.uk*RH1QL6345
21/07/2021,Customer Services,CENTRAL CO,3.99,Meals for Training Courses,CENTRAL CONVENIENT STORES
21/07/2021,West & North,WWW.LOCKER,8.22,Standard Equipment,WWW.LOCKERKEYS.BIZ
22/07/2021,ICT Delivery,SCREWFIX D,45.00,ICT Desktop Service,SCREWFIX DIRECT
22/07/2021,Chelston Vehicle Engineering,VANSTYLE,205.00,Direct Replacmnt Parts-Defects,VANSTYLE
22/07/2021,Crownhill Vehicle Engineering,LYRECO UK,2.50,Printing/Stationery/Photocopy,LYRECO DOC WLLT F/CAP/FOLIO 250G RED
22/07/2021,Crownhill Vehicle Engineering,LYRECO UK,3.90,Printing/Stationery/Photocopy,SCOTCH EASY USE TAPE 25X66MM CLEAR
22/07/2021,Crownhill Vehicle Engineering,LYRECO UK,0.26,Printing/Stationery/Photocopy,LYRECO GLUE STICK 20G
22/07/2021,Customer Services,AIRDAT LTD,70.80,Driver Tests,AIRDAT LTD
22/07/2021,Customer Services,MFG TELEGR,5.29,Meals for Training Courses,MFG TELEGRAPH HILL
22/07/2021,Customer Services,CO OP GROU,3.50,Meals for Training Courses,CO OP GROUP FOOD
23/07/2021,ICT Delivery,AMZNMktpla,26.66,Standard Equipment,Laptop Rucksack
23/07/2021,ICT Delivery,AMZNMktpla,49.22,ICT Desktop Service,AMZNMktplace
23/07/2021,Public Relations,HOTJAR,87.50,ICT Application Services (Oth),HOTJAR
23/07/2021,USAR Team,BEIJING TO,29.50,Catering/Refreshments,BEIJING TOPSHAM FRYER
23/07/2021,Modbury,CURRYS ONL,149.99,Standard Equipment,STN55 Under counter fridge
23/07/2021,Organisational Development,GOVERNMENT,289.00,Seminars/Conferences,GOVERNMENT EVENTS
23/07/2021,Human Resources,LYRECO UK,7.68,Printing/Stationery/Photocopy,VERBATIM PINSTRIPE USB2.0 DRIVE 8GB PPLE
23/07/2021,Human Resources,LYRECO UK,13.80,Printing/Stationery/Photocopy,VERBATIM 49173 V3 USB DRIVE 32GB BLK/GRY
23/07/2021,Human Resources,LYRECO UK,9.14,Printing/Stationery/Photocopy,VERBATIM PINSTRIPE USB2.0 DRIVE 16GB RED
23/07/2021,Human Resources,LYRECO UK,25.50,Printing/Stationery/Photocopy,BIC ECOLUTIONS CLIC STIC BALL PEN BLACK
23/07/2021,Human Resources,LYRECO UK,3.28,Printing/Stationery/Photocopy,PK4 LYRECO F/CHART MARKER B/TIP ASSTD
23/07/2021,Human Resources,LYRECO UK,8.35,Printing/Stationery/Photocopy,BX5 LYRECO FLIPCHART PADS A1 40 SHT
23/07/2021,Academy Management,AIRDAT LTD,70.80,Publications/Subscriptions,AIRDAT LTD
23/07/2021,Assets & Systems,iStock com,37.80,Licence fees,iStock com
23/07/2021,Customer Services,CO OP GROU,4.24,Meals for Training Courses,CO OP GROUP FOOD
23/07/2021,Customer Services,CO-OP GROU,4.25,Meals for Training Courses,CO-OP GROUP FOOD
23/07/2021,Customer Services,TESCO STOR,14.30,Meals for Training Courses,TESCO STORES 6303
23/07/2021,West & North,AMZNMktpla,22.99,Standard Equipment,AMZNMktplace
24/07/2021,West Devon,LYRECO UK,2.38,Printing/Stationery/Photocopy,BX200 LYRECO M/PURPOSE LABEL 210X148
24/07/2021,West Devon,LYRECO UK,5.66,Printing/Stationery/Photocopy,LYRECO BUDGET HEAVY TAPE DISP BLK
24/07/2021,West Devon,LYRECO UK,9.40,Printing/Stationery/Photocopy,LYRECO HARD BACK TWIN WIRE NOTEBOOK A4
24/07/2021,West Devon,LYRECO UK,5.94,Printing/Stationery/Photocopy,BX100 LYRECO PVC COVER 200MIC A4 TRANSP
25/07/2021,USAR Team,LONDIS,59.02,Provisions Purchase,LONDIS
25/07/2021,Assets & Systems,ZOOM.US 88,23.98,ICT Application Services (Oth),Standard Pro Monthly
26/07/2021,Hydrants Maintenance,SAFETYSUPP,17.58,Standard Equipment,SAFETYSUPPL
26/07/2021,Middlemoor Fire Station,HALFORDS 0,1.66,Unforseen Maintnce Mats Techn,HALFORDS 0446
26/07/2021,USAR Team,Exeter Too,336.35,Operational Equipment,Exeter Tool Shop
26/07/2021,USAR Team,HALFORDS 0,7.00,Operational Equipment,HALFORDS 0875
26/07/2021,Yeovil Group,AMZNMktpla,56.99,Standard Equipment,AMZNMktplace
26/07/2021,Yeovil Group,AMZNMktpla,48.33,Standard Equipment,AMZNMktplace
26/07/2021,Yeovil Group,MIRAFIT,218.65,Standard Equipment,MIRAFIT
26/07/2021,Driver Training School,TESCO STOR,3.80,Catering/Refreshments,TESCO STORE 2679
26/07/2021,Academy Management,Wiggle Lim,61.44,Trng Equip Consumables,Wiggle Limited
26/07/2021,Academy Management,Wiggle Lim,301.95,Trng Equip Consumables,Wiggle Limited
26/07/2021,Customer Services,SHELL A38,4.75,Meals for Training Courses,SHELL A38 WEST BUCKLAN
27/07/2021,ICT Delivery,HOSTEK* HO,199.16,ICT Infrastructure Service,HOSTEK* HOSTEK
27/07/2021,Democratic Services,LYRECO UK,15.98,Printing/Stationery/Photocopy,PK250 LYRECO ENV C4 100G P/S WH
27/07/2021,Crediton,BOOKER LIM,630.62,Wholetime Fireground Feeding,BOOKER LIMITED EXETER
27/07/2021,Crediton,MAKRO SELF,49.78,Wholetime Fireground Feeding,MAKRO SELF SERVICE EXETER
27/07/2021,Middlemoor Fire Station,THE FASCIA,6.08,Unforseen Maintnce Mats Techn,THE FASCIA PLACE
27/07/2021,USAR Dog,OSCARS HON,54.75,USAR Dog Expenses,OSCARS HONITON R/T CUR
27/07/2021,Academy Management,COLOURBRID,42.00,Printing/Stationery/Photocopy,COLOURBRIDGE SOUTH WEST
27/07/2021,Assets & Systems,FASTHOSTS,7.54,ICT Application Services (Oth),FASTHOSTS INTERNET
27/07/2021,Customer Services,RSS WHIDDO,4.80,Meals for Training Courses,RSS WHIDDON DOWN
27/07/2021,Customer Services,TESCO STOR,3.85,Meals for Training Courses,TESCO STORES 5663
27/07/2021,Customer Services,CROSS KEYS,5.95,Meals for Training Courses,CROSS KEYS SF CONNECT
27/07/2021,Prevention Delivery,AMZNMktpla,30.40,Standard Equipment,AMZNMktplace
28/07/2021,ICT Delivery,FASTHOSTS,5.04,ICT Infrastructure Service,FASTHOSTS INTERNET
28/07/2021,Estates,EDMUNDSON,5.20,Unforseen Maintnce Mats Techn,EDMUNDSON ELECTRICAL
28/07/2021,Estates,EDMUNDSON,-5.20,Unforseen Maintnce Mats Techn,EDMUNDSON ELECTRICAL
28/07/2021,Estates,PREMIER CA,112.33,Unforseen Maintnce Mats Techn,PREMIER CATERING EQUIP
28/07/2021,Chelston Vehicle Engineering,Vanscape,-330.00,Vehicle Consumables,Vanscape
28/07/2021,Chelston Vehicle Engineering,AMZNMKTPLA,4.16,Carriage Charges,"AMAZON, Carriage"
28/07/2021,Chelston Vehicle Engineering,AMZNMKTPLA,6.41,Operational Equipment,AMZNMKTPLACE AMAZON.CO.UK
28/07/2021,Executive Board,LYRECO UK,31.08,Printing/Stationery/Photocopy,PK5+2 BLACKN'RED N/BK C/BOUND A4 RUL BLK
28/07/2021,Executive Board,LYRECO UK,0.21,Printing/Stationery/Photocopy,BX12 FOLD BACK CLIPS 7X19MM BLACK
28/07/2021,Executive Board,LYRECO UK,1.98,Printing/Stationery/Photocopy,PK6 LYRECO PREMIUM NOTE 75X75MM SUMMER
28/07/2021,Executive Board,LYRECO UK,0.42,Printing/Stationery/Photocopy,LYRECO GLUE STICK 40G
28/07/2021,Executive Board,LYRECO UK,4.56,Printing/Stationery/Photocopy,RM250 CLAIREFONTAINE 2618 PAP A4 160G WH
28/07/2021,Executive Board,LYRECO UK,7.20,Printing/Stationery/Photocopy,CAMBRIDGE COUNSELS N/BOOK RULED A4 BLU
28/07/2021,Executive Board,LYRECO UK,0.32,Printing/Stationery/Photocopy,PK4 LYRECO INDEX PAPIER 20X50MM ASSTD
28/07/2021,Executive Board,LYRECO UK,1.50,Printing/Stationery/Photocopy,MICRON B/POINT PEN MED BLK
28/07/2021,Public Relations,FACEBK QL2,700.00,Marketing Materials,FACEBK QL25W7XFF2
28/07/2021,USAR Team,GLOUCESTER,17.90,Catering/Refreshments,GLOUCESTER SERVICES NORTH
28/07/2021,USAR Team,COTSWOLD O,177.23,Uniforms Other,COTSWOLD OUTDOOR
28/07/2021,West Devon,PAYPAL *EM,370.00,Standard Equipment,PAYPAL *EMSWASTESER
28/07/2021,Taunton Group,LYRECO UK,4.52,Printing/Stationery/Photocopy,BX1800 LYRECO M/PURPOSE LABEL 63.5X46.6
28/07/2021,Taunton Group,LYRECO UK,2.54,Printing/Stationery/Photocopy,MAGIBOARDS MAGNETIC TAPE 10MMX3M BLK
28/07/2021,Wiveliscombe,AMZNMktpla,11.57,Standard Equipment,AMZNMktplace
28/07/2021,Yeovil Group,LYRECO UK,19.71,Standard Equipment,LACQUER W/BOARD 90X120CM
28/07/2021,Yeovil Group,LYRECO UK,4.60,Printing/Stationery/Photocopy,KEYBOARD WRIST REST FOAM PAD BLK
28/07/2021,Yeovil Group,LYRECO UK,6.83,Printing/Stationery/Photocopy,MOUSE PAD GEL BLK
28/07/2021,Yeovil Group,LYRECO UK,4.32,Printing/Stationery/Photocopy,LYRECO RETRACTABLE B/POINT PEN MED BLK
28/07/2021,Yeovil Group,LYRECO UK,10.47,Printing/Stationery/Photocopy,PK4 LUMOCOLOR 318 PERM OHP PEN F ASSTD
28/07/2021,Yeovil Group,LYRECO UK,6.36,Printing/Stationery/Photocopy,PK4 LUMOCOLOR 316 N/PERM OHP PEN F ASSTD
28/07/2021,Yeovil Group,LYRECO UK,2.80,Printing/Stationery/Photocopy,PK4 LYRECO W/BOARD MARKER C/TIP ASSTD
28/07/2021,Yeovil Group,LYRECO UK,1.30,Printing/Stationery/Photocopy,LYRECO CORRECTION FLUID BOTTLE 20ML
28/07/2021,Yeovil Group,LYRECO UK,9.40,Printing/Stationery/Photocopy,LYRECO HARD BACK TWIN WIRE NOTEBOOK A4
28/07/2021,Yeovil Group,LYRECO UK,0.84,Printing/Stationery/Photocopy,LYRECO GLUE STICK 40G
28/07/2021,Yeovil Group,LYRECO UK,12.63,Printing/Stationery/Photocopy,BX100 LYRECO LAM POUCH 2X75MI A4 GLOSS
28/07/2021,Yeovil Group,LYRECO UK,3.00,Printing/Stationery/Photocopy,FOCUS BALL PEN MEDIUM BLK
28/07/2021,Yeovil Group,LYRECO UK,22.95,Printing/Stationery/Photocopy,BX100 LYRECO LAM POUCH 2X75MI A3 GLOSS
28/07/2021,Shepton Mallet,ARGOS LTD,87.92,Standard Equipment,ARGOS LTD
28/07/2021,Customer Services,W M MORRIS,3.85,Meals for Training Courses,W M MORRISON PETROL
28/07/2021,Customer Services,SAINSBURYS,5.65,Meals for Training Courses,SAINSBURYS PETROL
28/07/2021,Customer Services,SHELL A38,4.95,Meals for Training Courses,SHELL A38 WEST BUCKLAN
28/07/2021,West & North,AMZNMktpla,2.89,Standard Equipment,AMZNMktplace
28/07/2021,West & North,AMZNMKTPLA,14.98,Standard Equipment,AMZNMKTPLACE AMAZON.CO.UK
28/07/2021,West & North,WWW.LOCKER,35.34,Standard Equipment,WWW.LOCKERKEYS.BIZ
29/07/2021,ICT Delivery,DHL PARCEL,57.41,ICT Fireground Radio Service,DHL PARCEL UK
29/07/2021,Estates,TOOLSTATIO,12.03,Unforseen Maintnce Mats Techn,TOOLSTATION LTD
29/07/2021,Public Relations,SHUTTERSTO,31.20,Printing/Stationery/Photocopy,SHUTTERSTOCK IRELAND LIMI
29/07/2021,USAR Team,WELCOME BR,48.25,Subsistence,WELCOME BREAK-MICHAELW
29/07/2021,USAR Team,WELCOME BR,36.06,Subsistence,WELCOME BREAK-MICHAELW
29/07/2021,Tavistock,WORTH ELEC,29.95,Planned Project Mats Tech,WORTH ELECTRICAL WHOLESA
29/07/2021,South Devon,POST OFFIC,23.76,Postages,POST OFFICE COUNTER
29/07/2021,Customer Services,GRUBS UP,5.00,Meals for Training Courses,GRUBS UP
29/07/2021,Customer Services,TESCO STOR,3.85,Meals for Training Courses,TESCO STORE 2487
29/07/2021,Customer Services,W M MORRIS,2.76,Meals for Training Courses,W M MORRISON
30/07/2021,ICT Delivery,SCREWFIX D,53.56,ICT Desktop Service,SCREWFIX DIRECT
30/07/2021,Public Relations,SQ *ESCOT,457.32,Non-Uniformed Training,SQ *ESCOT ESTATE
30/07/2021,South Devon,DUNELM,9.92,Standard Equipment,DUNELM
30/07/2021,Customer Services,TESCO PFS,3.00,Meals for Training Courses,TESCO PFS 4169
30/07/2021,Customer Services,TESCO PFS,2.78,Meals for Training Courses,TESCO PFS 3708
31/07/2021,Public Relations,FACEBK UXS,74.19,Marketing Materials,FACEBK UXSK36BFF2
31/07/2021,Customer Services,W M MORRIS,2.76,Meals for Training Courses,W M MORRISON
31/07/2021,West & North,AMZNMktpla,22.30,Standard Equipment,AMZNMktplace
